bitfinex-derivatives/quotes_BTCF0:USTF0_20251208
["timestamp","ask_amount","ask_price","bid_price","bid_amount"]
[1765216920690,0.05674,90309.0,90308.0,0.0677734]
[1765216920988,0.00016609,90317.0,90315.0,0.0110725]
[1765216921289,0.00016609,90317.0,90316.0,0.0567]
[1765216921477,0.00116609,90317.0,90316.0,0.0567]
[1765216922294,0.00110694,90340.0,90339.0,0.0677696]
[1765216923385,0.00110694,90340.0,90339.0,0.08358367]
[1765216924691,0.00710694,90340.0,90339.0,0.08358367]
[1765216925395,0.00710694,90340.0,90339.0,0.07251407]
[1765216925598,0.06525694,90340.0,90339.0,0.07251407]
[1765216926486,0.03608694,90340.0,90339.0,0.07251407]
[1765216928000,0.03608694,90340.0,90339.0,0.0567]
[1765216928198,0.00710694,90340.0,90339.0,0.0677696]
[1765216928401,0.06525694,90340.0,90339.0,0.0677696]
[1765216929001,0.06525694,90340.0,90339.0,0.08409819]
[1765216930405,0.00710694,90340.0,90339.0,0.08409819]
[1765216931892,0.06525694,90340.0,90339.0,0.07302859]
[1765216932092,0.0692206,90331.0,90330.0,0.02747609]
[1765216932293,0.00710694,90340.0,90330.0,0.02747609]
[1765216932294,0.06568694,90340.0,90339.0,0.05744]
[1765216933099,0.05968694,90340.0,90339.0,0.05744]
[1765216933501,0.03073694,90340.0,90330.0,0.2301693]
[1765216933706,0.05858,90331.0,90330.0,0.00016609]
[1765216934801,0.05858,90307.0,90306.0,0.0855936]
[1765216934998,0.05858,90307.0,90306.0,0.07313368]
[1765216935197,0.05858,90298.0,90297.0,0.31481791]
[1765216935391,0.05858,90309.0,90308.0,0.0685134]
[1765216935800,0.02895,90309.0,90308.0,0.0685134]
[1765216936203,0.05858,90314.0,90313.0,0.0685127]
[1765216937592,0.00016609,90318.0,90317.0,0.0685123]
[1765216937802,0.02911609,90318.0,90317.0,0.0685123]
[1765216937998,0.05874609,90318.0,90317.0,0.0387723]
[1765216938302,0.05874609,90318.0,90317.0,0.0277]
[1765216938608,0.05858,90314.0,90313.0,0.0397727]
[1765216939009,0.05858,90314.0,90313.0,0.0695127]
[1765216939308,0.00016609,90318.0,90304.0,0.23000321]
[1765216939309,0.00016609,90318.0,90317.0,0.0685123]
[1765216940107,0.02911609,90318.0,90317.0,0.0685123]
[1765216940611,0.04018829,90318.0,90317.0,0.05744]
[1765216940813,0.02911609,90318.0,90317.0,0.0685123]
[1765216941308,0.00016609,90318.0,90317.0,0.0685123]
[1765216942809,0.05968694,90340.0,90339.0,0.05744]
[1765216943007,0.00110694,90340.0,90339.0,0.05744]
[1765216943309,0.00110694,90340.0,90320.0,0.0273719]
[1765216943310,0.05858,90333.0,90320.0,0.0273719]
[1765216943505,0.0110696,90339.0,90324.0,0.0110713]
[1765216943709,0.0696513,90325.0,90324.0,0.05744]
[1765216943897,0.05858,90325.0,90324.0,0.0277]
[1765216944102,0.05858,90323.0,90322.0,0.0110716]
[1765216944303,0.05858,90323.0,90322.0,0.0685116]
[1765216945211,0.02895,90323.0,90322.0,0.0685116]
[1765216945602,0.02895,90323.0,90321.0,0.0163]
[1765216945603,0.05858,90331.0,90330.0,0.0685107]
[1765216945909,0.0696506,90331.0,90330.0,0.05744]
[1765216946115,0.00016594,90334.0,90333.0,0.05744]
[1765216947114,0.00110694,90340.0,90339.0,0.0685096]
[1765216949003,0.00110694,90340.0,90339.0,0.0695096]
[1765216949999,0.00110694,90340.0,90339.0,0.0725096]
[1765216951604,0.00110694,90340.0,90339.0,0.0695096]
[1765216951801,0.00110694,90340.0,90339.0,0.0725096]
[1765216952004,0.00110694,90340.0,90339.0,0.0715096]
[1765216952602,0.00110694,90340.0,90339.0,0.06044]
[1765216952799,0.05968694,90340.0,90339.0,0.06044]
[1765216953006,0.05968694,90340.0,90339.0,0.003]
[1765216953205,0.011071,90328.0,90321.0,0.0273717]
[1765216953514,0.040021,90328.0,90327.0,0.05744]
[1765216953707,0.069651,90328.0,90327.0,0.05744]
[1765216953914,0.05858,90328.0,90327.0,0.05744]
[1765216954615,0.02895,90328.0,90327.0,0.05744]
[1765216955211,0.0110705,90332.0,90331.0,0.05744]
[1765216955413,0.0696505,90332.0,90331.0,0.05744]
[1765216956319,0.0696509,90328.0,90327.0,0.001]
[1765216956615,0.0696509,90328.0,90315.0,0.00016609]
[1765216956616,0.0110711,90327.0,90326.0,0.05744]
[1765216956809,0.00110694,90340.0,90326.0,0.0685112]
[1765216957008,0.02618471,90339.0,90330.0,0.23000321]
[1765216957210,0.0110704,90333.0,90332.0,0.07374]
[1765216957408,0.06620471,90337.0,90336.0,0.05744]
[1765216957616,0.0958339,90337.0,90336.0,0.05744]
[1765216959713,0.0847641,90337.0,90336.0,0.05744]
[1765216960907,0.05858,90330.0,90329.0,0.05744]
[1765216961113,0.05858,90324.0,90323.0,0.05744]
[1765216962208,0.0110718,90322.0,90319.0,0.02972]
[1765216962410,0.05672,90316.0,90315.0,0.07095859]
[1765216962610,0.05672,90316.0,90315.0,0.05988609]
[1765216963518,0.05672,90316.0,90315.0,0.00016609]
[1765216964313,0.05672,90316.0,90315.0,0.00116609]
[1765216965023,0.05672,90316.0,90315.0,0.00016609]
[1765216965221,0.05672,90316.0,90315.0,0.00116609]
[1765216966813,0.05672,90316.0,90315.0,0.06088609]
[1765216967320,0.05672,90316.0,90315.0,0.00116609]
[1765216967525,0.05672,90316.0,90315.0,0.01223859]
[1765216968128,0.05672,90316.0,90315.0,0.07195859]
[1765216969219,0.02711,90316.0,90315.0,0.07095859]
[1765216969418,0.0677916,90323.0,90322.0,0.05972]
[1765216969622,0.0828865,90323.0,90322.0,0.05972]
[1765216969813,0.05782694,90340.0,90339.0,0.05972]
[1765216970018,0.0839894,90340.0,90339.0,0.05972]
[1765216970329,0.0839894,90340.0,90339.0,0.02972]
[1765216971329,0.06779,90336.0,90335.0,0.02972]
[1765216971519,0.06779,90336.0,90335.0,0.0407901]
[1765216971520,0.09395246,90336.0,90335.0,0.0407901]
[1765216972328,0.08288246,90336.0,90335.0,0.0707901]
[1765216973422,0.05672,90329.0,90328.0,0.0707909]
[1765216973623,0.05672,90316.0,90315.0,0.00016609]
[1765216973817,0.05672,90316.0,90315.0,0.01123859]
[1765216974013,0.02711,90316.0,90315.0,0.07095859]
[1765216974216,0.05672,90316.0,90315.0,0.07095859]
[1765216974825,0.0677924,90316.0,90315.0,0.05988609]
[1765216975015,0.0677924,90316.0,90315.0,0.00016609]
[1765216975429,0.09396651,90316.0,90315.0,0.00116609]
[1765216975623,0.0677946,90298.0,90294.0,0.011075]
[1765216975929,0.05672,90298.0,90297.0,0.02972]
[1765216976128,0.05672,90294.0,90293.0,0.0407952]
[1765216976427,0.05672,90294.0,90293.0,0.05972]
[1765216977621,0.00016609,90303.0,90290.0,0.03257181]
[1765216977622,0.05672,90291.0,90290.0,0.01479181]
[1765216977823,0.02711,90285.0,90284.0,0.07096239]
[1765216978029,0.02711,90285.0,90284.0,0.08623933]
[1765216979018,0.05672,90285.0,90284.0,0.08016303]
[1765216979219,0.05672,90285.0,90284.0,0.08416303]
[1765216980732,0.05672,90285.0,90284.0,0.08116303]
[1765216981319,0.05672,90285.0,90284.0,0.07516303]
[1765216981519,0.05672,90285.0,90284.0,0.07616303]
[1765216982120,0.05672,90285.0,90284.0,0.01644303]
[1765216982321,0.05672,90285.0,90284.0,0.00116609]
[1765216983228,0.02711,90285.0,90284.0,0.06088609]
[1765216983437,0.05672,90285.0,90284.0,0.06088609]
[1765216984024,0.05672,90285.0,90284.0,0.05988609]
[1765216984627,0.05798,90295.0,90294.0,0.058]
[1765216984828,0.069055,90295.0,90294.0,0.058]
[1765216985023,0.05798,90285.0,90284.0,0.00016609]
[1765216986534,0.05798,90285.0,90284.0,0.01124239]
[1765216986732,0.05798,90285.0,90284.0,0.00016609]
[1765216987142,0.05798,90285.0,90284.0,0.05816609]
[1765216987436,0.02919,90285.0,90284.0,0.05816609]
[1765216987938,0.05798,90285.0,90284.0,0.05816609]
[1765216988133,0.001,90285.0,90284.0,0.05816609]
[1765216988838,0.02919,90291.0,90290.0,0.0690756]
[1765216989031,0.05798,90291.0,90290.0,0.0690756]
[1765216989335,0.05798,90298.0,90297.0,0.0690746]
[1765216989544,0.05814609,90303.0,90302.0,0.0690741]
[1765216989732,0.05814609,90303.0,90302.0,0.058]
[1765216989927,0.02879,90293.0,90292.0,0.0405752]
[1765216990131,0.05798,90293.0,90292.0,0.0405752]
[1765216990636,0.05798,90293.0,90292.0,0.0690752]
[1765216990831,0.05798,90300.0,90299.0,0.0690745]
[1765216991028,0.05798,90300.0,90299.0,0.058]
[1765216991431,0.00016609,90303.0,90302.0,0.058]
[1765216991725,0.05814609,90303.0,90302.0,0.058]
[1765216991925,0.00016609,90303.0,90302.0,0.058]
[1765216993025,0.0687307,90330.0,90329.0,0.05415]
[1765216993233,0.02874,90322.0,90321.0,0.04367]
[1765216993434,0.02874,90322.0,90321.0,0.07074]
[1765216994036,0.05766,90322.0,90321.0,0.05415]
[1765216995137,0.05766,90320.0,90319.0,0.0381419]
[1765216995439,0.02874,90320.0,90319.0,0.0652219]
[1765216995846,0.05766,90320.0,90319.0,0.0652219]
[1765216996547,0.05766,90313.0,90312.0,0.06538899]
[1765216997139,0.02874,90313.0,90312.0,0.06538899]
[1765216997535,0.05766,90313.0,90312.0,0.00016609]
[1765216998043,0.05766,90313.0,90312.0,0.00216609]
[1765216998444,0.05766,90291.0,90290.0,0.02707]
[1765216998638,0.0110739,90305.0,90304.0,0.05415]
[1765216998838,0.0687339,90305.0,90304.0,0.05415]
[1765216999841,0.05766,90305.0,90304.0,0.05415]
[1765217000634,0.05766,90305.0,90304.0,0.02707]
[1765217000843,0.02874,90296.0,90295.0,0.06539099]
[1765217001748,0.05766,90296.0,90295.0,0.00016609]
[1765217003751,0.0687349,90296.0,90295.0,0.00016609]
[1765217004247,0.0632,90280.0,90278.0,0.011077]
[1765217004441,0.0632,90280.0,90277.0,0.0110771]
[1765217004637,0.0632,90280.0,90270.0,0.01659]
[1765217004950,0.0632,90280.0,90269.0,0.0110782]
[1765217005154,0.0632,90280.0,90272.0,0.0110778]
[1765217005354,0.0632,90280.0,90275.0,0.0110774]
[1765217005746,0.0632,90280.0,90277.0,0.0110771]
[1765217006352,0.05766,90280.0,90277.0,0.0110771]
[1765217006551,0.05766,90280.0,90277.0,0.0110772]
[1765217007851,0.05782609,90289.0,90288.0,0.0381458]
[1765217008052,0.08409143,90289.0,90288.0,0.05415]
[1765217008553,0.08409143,90289.0,90288.0,0.0652258]
[1765217008848,0.08409143,90289.0,90288.0,0.0381458]
[1765217009062,0.05766,90286.0,90285.0,0.0110762]
[1765217009249,0.05766,90286.0,90285.0,0.0652262]
[1765217010638,0.02874,90286.0,90285.0,0.0652262]
[1765217010838,0.00016609,90289.0,90288.0,0.0818158]
[1765217011044,0.05782609,90289.0,90288.0,0.0652258]
[1765217011743,0.05782609,90289.0,90288.0,0.02707]
[1765217012348,0.05766,90286.0,90285.0,0.002]
[1765217012954,0.05766,90280.0,90279.0,0.03836844]
[1765217013147,0.05766,90280.0,90279.0,0.06544844]
[1765217016256,0.05766,90280.0,90279.0,0.06644844]
[1765217017152,0.05766,90280.0,90279.0,0.00122154]
[1765217017358,0.0632,90280.0,90279.0,0.00122154]
[1765217017549,0.08946368,90280.0,90279.0,0.00122154]
[1765217018549,0.0687379,90271.0,90270.0,0.00016609]
[1765217020151,0.0687379,90271.0,90206.0,0.21189504]
[1765217020152,0.0399996,90258.0,90257.0,0.0381494]
[1765217020346,0.0687396,90258.0,90257.0,0.0110794]
[1765217020759,0.01108,90255.0,90254.0,0.01108]
[1765217020955,0.05766,90254.0,90251.0,0.0110803]
[1765217021167,0.05766,90254.0,90245.0,0.0110811]
[1765217021363,0.05766,90254.0,90244.0,0.00016619]
[1765217021661,0.0687408,90248.0,90247.0,0.0110808]
[1765217021861,0.05766,90245.0,90244.0,0.00016619]
[1765217022254,0.0687411,90245.0,90244.0,0.00016619]
[1765217022765,0.05777617,90245.0,90244.0,0.00016619]
[1765217023460,0.05777617,90245.0,90244.0,0.00116619]
[1765217023762,0.06885727,90245.0,90244.0,0.00116619]
[1765217025268,0.05777617,90245.0,90244.0,0.00116619]
[1765217026164,0.05777617,90245.0,90244.0,0.03062619]
[1765217026367,0.05777617,90245.0,90244.0,0.06030619]
[1765217026568,0.00011617,90245.0,90244.0,0.06030619]
[1765217026871,0.05539617,90245.0,90244.0,0.00116619]
[1765217027563,0.05539617,90245.0,90240.0,0.00110816]
[1765217027564,0.05528,90241.0,90240.0,0.00110816]
[1765217027769,0.05528,90224.0,90223.0,0.08462955]
[1765217027959,0.05541893,90224.0,90223.0,0.08462955]
[1765217028160,0.00013893,90224.0,90223.0,0.08462955]
[1765217029263,0.00013893,90224.0,90223.0,0.08862955]
[1765217030970,0.00013893,90224.0,90223.0,0.09162955]
[1765217031768,0.05541893,90224.0,90223.0,0.08054575]
[1765217032571,0.05541893,90224.0,90223.0,0.02140575]
[1765217033071,0.05541893,90224.0,90223.0,0.05086575]
[1765217033273,0.05541893,90224.0,90223.0,0.03246]
[1765217033468,0.05541893,90224.0,90223.0,0.03446]
[1765217033857,0.05541893,90224.0,90223.0,0.06114]
[1765217034169,0.05541893,90224.0,90223.0,0.06414]
[1765217034964,0.05541893,90224.0,90223.0,0.005]
[1765217035163,0.05541893,90224.0,90223.0,0.06414]
[1765217036564,0.00013893,90224.0,90223.0,0.06414]
[1765217038375,0.00016619,90233.0,90232.0,0.0702227]
[1765217040274,0.00016619,90233.0,90232.0,0.0712227]
[1765217040581,0.05880619,90233.0,90232.0,0.0712227]
[1765217040771,0.00016619,90233.0,90232.0,0.0712227]
[1765217042280,0.05880619,90233.0,90232.0,0.0712227]
[1765217042480,0.02996619,90233.0,90232.0,0.0712227]
[1765217042671,0.00016619,90233.0,90232.0,0.0712227]
[1765217046172,0.0298,90253.0,90252.0,0.07551]
[1765217046481,0.08466283,90253.0,90252.0,0.07551]
[1765217046971,0.08466283,90253.0,90252.0,0.05764]
[1765217047168,0.02602283,90253.0,90252.0,0.07551]
[1765217047479,0.02702283,90253.0,90252.0,0.07551]
[1765217048973,0.02602283,90253.0,90252.0,0.07551]
[1765217049781,0.09574293,90253.0,90249.0,0.0110806]
[1765217049979,0.05864,90250.0,90249.0,0.02989]
[1765217050183,0.08466283,90250.0,90249.0,0.02989]
[1765217050774,0.08466283,90250.0,90249.0,0.05764]
[1765217051370,0.05864,90250.0,90249.0,0.05764]
[1765217052789,0.05618,90261.0,90260.0,0.0402493]
[1765217053084,0.08264779,90261.0,90260.0,0.0685493]
[1765217053680,0.08264779,90261.0,90260.0,0.05747]
[1765217053883,0.08364779,90261.0,90260.0,0.05747]
[1765217054082,0.08364779,90261.0,90260.0,0.0685493]
[1765217054381,0.08364779,90261.0,90260.0,0.05747]
[1765217054983,0.02746779,90261.0,90260.0,0.05747]
[1765217055185,0.001,90261.0,90260.0,0.05747]
[1765217056079,0.05718,90261.0,90260.0,0.05747]
[1765217056284,0.05618,90261.0,90260.0,0.07426]
[1765217057171,0.02728,90261.0,90260.0,0.07426]
[1765217057384,0.00016619,90262.0,90261.0,0.0685492]
[1765217058281,0.0110763,90285.0,90264.0,0.0685488]
[1765217059191,0.00016619,90274.0,90264.0,0.0685488]
[1765217059377,0.00016619,90274.0,90273.0,0.0685477]
[1765217059578,0.0203,90291.0,90290.0,0.0853356]
[1765217060181,0.04758,90291.0,90290.0,0.0853356]
[1765217060378,0.07648,90291.0,90290.0,0.07426]
[1765217060977,0.05618,90289.0,90288.0,0.04366651]
[1765217061181,0.05618,90289.0,90288.0,0.02917]
[1765217062991,0.05618,90282.0,90281.0,0.05763619]
[1765217063492,0.0875555,90291.0,90290.0,0.05747]
[1765217063689,0.07648,90291.0,90290.0,0.05747]
[1765217065289,0.04758,90291.0,90290.0,0.05747]
[1765217065592,0.07648,90291.0,90290.0,0.05747]
[1765217066793,0.05618,90282.0,90281.0,0.00016619]
[1765217068993,0.0110764,90284.0,86753.0,0.05]
[1765217068994,0.02728,90262.0,90261.0,0.0853391]
[1765217070288,0.02728,90262.0,90261.0,0.09883586]
[1765217070489,0.05634619,90271.0,90270.0,0.0853381]
[1765217070682,0.02744619,90271.0,90270.0,0.0853381]
[1765217071288,0.00016619,90271.0,90270.0,0.0853381]
[1765217073890,0.05634619,90271.0,90270.0,0.0685481]
[1765217074188,0.05634619,90271.0,90270.0,0.0853381]
[1765217074900,0.05634619,90271.0,90270.0,0.0685481]
[1765217075200,0.05634619,90271.0,90270.0,0.0853381]
[1765217075590,0.05634619,90271.0,90270.0,0.0685481]
[1765217076097,0.05634619,90271.0,90270.0,0.0853381]
[1765217077300,0.02744619,90271.0,90270.0,0.0853381]
[1765217077501,0.00016619,90271.0,90270.0,0.0853381]
[1765217078892,0.05634619,90271.0,90270.0,0.0685481]
[1765217079597,0.02744619,90271.0,90270.0,0.0853381]
[1765217079793,0.00016619,90271.0,90270.0,0.0853381]
[1765217082195,0.05590619,90271.0,90270.0,0.0853381]
[1765217083588,0.00016619,90271.0,90270.0,0.0853381]
[1765217083803,0.04845,90291.0,90290.0,0.05594]
[1765217084001,0.10330359,90291.0,90290.0,0.0670156]
[1765217084403,0.04669359,90291.0,90290.0,0.0670156]
[1765217085196,0.07484359,90291.0,90290.0,0.0670156]
[1765217085397,0.10330359,90291.0,90290.0,0.05594]
[1765217085594,0.10330359,90291.0,90290.0,0.0670156]
[1765217086401,0.07484359,90291.0,90290.0,0.0670156]
[1765217086703,0.04669359,90291.0,90290.0,0.0670156]
[1765217087100,0.0203,90291.0,90290.0,0.0670156]
[1765217088106,0.00016619,90300.0,90299.0,0.0670145]
[1765217088806,0.02655719,90300.0,90299.0,0.0670145]
[1765217089211,0.00016619,90300.0,90299.0,0.0670145]
[1765217089602,0.00116619,90300.0,90299.0,0.0670145]
[1765217090203,0.00016619,90300.0,90299.0,0.0680145]
[1765217090903,0.00016619,90300.0,90299.0,0.0670145]
[1765217091104,0.00016619,90300.0,90299.0,0.0680145]
[1765217092113,0.05661,90318.0,90317.0,0.05594]
[1765217092303,0.08297281,90318.0,90317.0,0.05594]
[1765217092502,0.09404501,90318.0,90317.0,0.05594]
[1765217092907,0.09404501,90318.0,90317.0,0.02715]
[1765217093112,0.05661,90313.0,90312.0,0.0670128]
[1765217093314,0.08297281,90313.0,90312.0,0.0670128]
[1765217094111,0.08397281,90313.0,90312.0,0.0670128]
[1765217094306,0.09504561,90313.0,90312.0,0.0670128]
[1765217094513,0.05661,90309.0,90308.0,0.0001661]
[1765217095017,0.0676833,90309.0,90308.0,0.0001661]
[1765217095416,0.0676833,90309.0,90308.0,0.0112395]
[1765217096717,0.0686833,90309.0,90308.0,0.0112395]
[1765217096912,0.0686833,90309.0,90308.0,0.0001661]
[1765217097116,0.01104,90297.0,90295.0,0.0110749]
[1765217097309,0.01104,90297.0,90280.0,0.24412454]
[1765217097310,0.067684,90303.0,90302.0,0.02715]
[1765217097617,0.0110751,90295.0,90294.0,0.0382251]
[1765217097815,0.0110742,90302.0,90301.0,0.0110742]
[1765217098118,0.0676846,90299.0,90298.0,0.0382246]
[1765217098312,0.0676852,90293.0,90292.0,0.0001661]
[1765217098612,0.02815,90293.0,90292.0,0.0671815]
[1765217098805,0.05661,90293.0,90292.0,0.0671815]
[1765217099413,0.0676844,90300.0,90299.0,0.0670145]
[1765217099718,0.05661,90300.0,90299.0,0.0670145]
[1765217100418,0.0577358,90311.0,90310.0,0.0686131]
[1765217100613,0.05757,90298.0,90297.0,0.0848847]
[1765217101113,0.30025455,90320.0,90297.0,0.0848847]
[1765217101114,0.05970728,90335.0,90310.0,0.0395831]
[1765217101314,0.0649,90324.0,90307.0,0.0110734]
[1765217101618,0.05757,90320.0,90319.0,0.011072]
[1765217101808,0.05757,90320.0,90319.0,0.068612]
[1765217102015,0.05757,90331.0,90330.0,0.0401006]
[1765217102316,0.05757,90331.0,90330.0,0.0686106]
[1765217102317,0.0838956,90331.0,90330.0,0.0686106]
[1765217102702,0.05757,90331.0,90330.0,0.0686106]
[1765217102909,0.00110694,90340.0,90339.0,0.0686096]
[1765217104612,0.05757,90357.0,90356.0,0.0400975]
[1765217104822,0.05757,90357.0,90356.0,0.0686075]
[1765217105021,0.05867663,90365.0,90364.0,0.05754]
[1765217105325,0.08494308,90365.0,90364.0,0.05754]
[1765217106620,0.08794308,90365.0,90364.0,0.05754]
[1765217107319,0.06167663,90365.0,90364.0,0.05754]
[1765217108507,0.0686369,90361.0,90360.0,0.02903]
[1765217108707,0.05757,90361.0,90360.0,0.02903]
[1765217109222,0.05757,90361.0,90360.0,0.05754]
[1765217109625,0.06057,90361.0,90360.0,0.05754]
[1765217110214,0.05757,90352.0,90351.0,0.068608]
[1765217110722,0.05757,90352.0,90351.0,0.05754]
[1765217111309,0.05857,90352.0,90351.0,0.05754]
[1765217111827,0.05757,90348.0,90347.0,0.057706]
[1765217113042,0.05757,90348.0,90347.0,0.000166]
[1765217113825,0.05757,90348.0,90347.0,0.056126]
[1765217114122,0.001,90352.0,90351.0,0.07265]
[1765217114321,0.05871663,90365.0,90364.0,0.02885]
[1765217114629,0.05761,90356.0,90355.0,0.0670276]
[1765217114927,0.05871663,90365.0,90364.0,0.05596]
[1765217115227,0.08468765,90365.0,90364.0,0.05596]
[1765217115528,0.00110663,90365.0,90364.0,0.0670265]
[1765217117420,0.00310663,90365.0,90364.0,0.0670265]
[1765217118126,0.00210663,90365.0,90364.0,0.0670265]
[1765217118316,0.00210663,90365.0,90364.0,0.05596]
[1765217118519,0.05761,90357.0,90356.0,0.05596]
[1765217118715,0.02954,90357.0,90356.0,0.05596]
[1765217118916,0.05761,90357.0,90356.0,0.05596]
[1765217119225,0.05971663,90365.0,90364.0,0.05596]
[1765217119422,0.05971663,90365.0,90364.0,0.0670265]
[1765217119423,0.03164663,90365.0,90364.0,0.0670265]
[1765217119725,0.00210663,90365.0,90364.0,0.0670265]
[1765217120519,0.00110663,90365.0,90364.0,0.0670265]
[1765217121422,0.05971663,90365.0,90364.0,0.0670265]
[1765217122322,0.00210663,90365.0,90364.0,0.0670265]
[1765217123724,0.06906688,90390.0,90389.0,0.0670235]
[1765217123725,0.03064632,90390.0,90389.0,0.0670235]
[1765217123925,0.05662983,90390.0,90389.0,0.0670235]
[1765217124424,0.00110632,90390.0,90389.0,0.08037296]
[1765217125427,0.00510632,90390.0,90389.0,0.08037296]
[1765217125832,0.03464632,90390.0,90389.0,0.05596]
[1765217126038,0.06271632,90390.0,90389.0,0.05596]
[1765217127828,0.00510632,90390.0,90389.0,0.05596]
[1765217128050,0.0110611,90409.0,90389.0,0.01345942]
[1765217128231,0.01739,90420.0,90409.0,0.011061]
[1765217128416,0.09452638,90419.0,90418.0,0.02885]
[1765217128733,0.06498638,90419.0,90411.0,0.0110608]
[1765217128922,0.05761,90412.0,90411.0,0.0670208]
[1765217129124,0.02585648,90412.0,90411.0,0.05596]
[1765217129935,0.05761,90419.0,90418.0,0.05596]
[1765217130130,0.05540766,90419.0,90418.0,0.05596]
[1765217130325,0.02586766,90419.0,90418.0,0.05596]
[1765217130526,0.0110578,90436.0,90426.0,0.0110588]
[1765217130732,0.02585224,90435.0,90426.0,0.0110588]
[1765217130924,0.02585224,90434.0,90422.0,0.0001659]
[1765217131123,0.08346224,90433.0,90432.0,0.02885]
[1765217131929,0.05761,90425.0,90424.0,0.05596]
[1765217132132,0.08346224,90425.0,90424.0,0.05596]
[1765217133929,0.08946224,90425.0,90424.0,0.05596]
[1765217135432,0.08946224,90425.0,90422.0,0.0112252]
[1765217135638,0.05761,90423.0,90422.0,0.0001659]
[1765217135839,0.08346224,90423.0,90422.0,0.0001659]
[1765217136138,0.05539224,90423.0,90422.0,0.0561259]
[1765217136434,0.02585224,90423.0,90422.0,0.0561259]
[1765217136640,0.08346224,90423.0,90422.0,0.0561259]
[1765217137532,0.08946224,90423.0,90422.0,0.0561259]
[1765217138631,0.05761,90407.0,90406.0,0.0670214]
[1765217138929,0.07325,90423.0,90405.0,0.01669]
[1765217139130,0.05761,90406.0,90405.0,0.07265]
[1765217140441,0.003,90407.0,90400.0,0.02885]
[1765217140641,0.05761,90401.0,90400.0,0.02885]
[1765217140841,0.05761,90401.0,90400.0,0.05596]
[1765217141233,0.08321543,90401.0,90400.0,0.05596]
[1765217141435,0.05761,90397.0,90396.0,0.0290159]
[1765217141934,0.05761,90397.0,90396.0,0.0561259]
[1765217142936,0.05761,90397.0,90396.0,0.0001659]
[1765217143239,0.08322595,90397.0,90396.0,0.0581459]
[1765217143445,0.08422595,90397.0,90396.0,0.0581459]
[1765217144943,0.05861,90397.0,90396.0,0.0581459]
[1765217146246,0.08326691,90397.0,90396.0,0.0581459]
[1765217146546,0.08426691,90397.0,90396.0,0.0581459]
[1765217147246,0.08427448,90397.0,90396.0,0.0692085]
[1765217147451,0.08427448,90397.0,90396.0,0.0001659]
[1765217148642,0.0110639,90386.0,90370.0,0.31693825]
[1765217148943,0.0592,90379.0,90378.0,0.07467]
[1765217149149,0.0292,90379.0,90378.0,0.0857348]
[1765217149338,0.0592,90379.0,90378.0,0.09885486]
[1765217149950,0.0592,90379.0,90378.0,0.05898]
[1765217150151,0.0592,90379.0,90378.0,0.07524]
[1765217150338,0.0592,90379.0,90378.0,0.08814517]
[1765217150652,0.0602,90379.0,90378.0,0.08714517]
[1765217150844,0.0602,90379.0,90378.0,0.05798]
[1765217151045,0.0712647,90379.0,90378.0,0.02957]
[1765217151249,0.0702658,90370.0,90369.0,0.0001659]
[1765217151454,0.09595978,90370.0,90369.0,0.0001659]
[1765217152333,0.09595978,90370.0,90369.0,0.0112318]
[1765217152334,0.08489398,90370.0,90369.0,0.0112318]
[1765217152746,0.08489398,90370.0,90369.0,0.0692118]
[1765217153142,0.0592,90370.0,90369.0,0.0692118]
[1765217153342,0.0602,90370.0,90369.0,0.0692118]
[1765217153642,0.0602,90370.0,90369.0,0.0581459]
[1765217154049,0.0592,90370.0,90369.0,0.0581459]
[1765217154246,0.0602,90370.0,90369.0,0.0581459]
[1765217155441,0.0602,90370.0,90369.0,0.0744059]
[1765217155641,0.001,90370.0,90369.0,0.0744059]
[1765217156056,0.0292,90379.0,90378.0,0.07424]
[1765217156250,0.02568535,90379.0,90378.0,0.0853048]
[1765217156448,0.070264,90385.0,90384.0,0.05798]
[1765217156646,0.09594165,90385.0,90384.0,0.05798]
[1765217156952,0.08487765,90385.0,90384.0,0.05798]
[1765217158650,0.08687765,90385.0,90384.0,0.05798]
[1765217159148,0.002,90385.0,90384.0,0.05798]
[1765217161150,0.05893,90385.0,90384.0,0.05798]
[1765217161346,0.069994,90385.0,90384.0,0.05798]
[1765217161652,0.05693,90379.0,90378.0,0.05857]
[1765217161855,0.0297159,90388.0,90387.0,0.0872037]
[1765217162056,0.0297159,90388.0,90387.0,0.07614]
[1765217162559,0.0570959,90388.0,90387.0,0.07614]
[1765217163043,0.05693,90379.0,90378.0,0.0696348]
[1765217163242,0.05693,90378.0,90377.0,0.0110648]
[1765217163454,0.0110649,90377.0,90360.0,0.24586537]
[1765217163751,0.05693,90370.0,90369.0,0.0001659]
[1765217163959,0.05693,90370.0,90369.0,0.0698018]
[1765217165249,0.05693,90370.0,90369.0,0.0873718]
[1765217165570,0.0679958,90370.0,90369.0,0.0001659]
[1765217166361,0.0848358,90370.0,90369.0,0.0001659]
[1765217166753,0.0858358,90370.0,90369.0,0.0001659]
[1765217167653,0.0679963,90366.0,90365.0,0.00110663]
[1765217168358,0.05693,90366.0,90365.0,0.01217303]
[1765217168664,0.05693,90366.0,90365.0,0.00110663]
[1765217169357,0.0679974,90357.0,90356.0,0.0001659]
[1765217170359,0.05693,90341.0,90340.0,0.04131644]
[1765217170761,0.05693,90341.0,90340.0,0.00110694]
[1765217171156,0.05693,90341.0,90340.0,0.05967694]
[1765217171460,0.05693,90341.0,90340.0,0.07724694]
[1765217173469,0.22960537,90370.0,90351.0,0.01721]
[1765217173680,0.02807,90352.0,90351.0,0.0865081]
[1765217173962,0.058,90352.0,90351.0,0.0865081]
[1765217174566,0.0593796,90383.0,90351.0,0.0865081]
[1765217174567,0.058,90362.0,90361.0,0.0692969]
[1765217174766,0.058166,90366.0,90365.0,0.0692964]
[1765217175066,0.058166,90366.0,90365.0,0.05823]
[1765217175366,0.058,90360.0,90359.0,0.0692971]
[1765217175564,0.058166,90366.0,90365.0,0.0692964]
[1765217177471,0.002166,90366.0,90365.0,0.0692964]
[1765217178168,0.001166,90366.0,90365.0,0.0692964]
[1765217179063,0.000166,90366.0,90365.0,0.0692964]
[1765217182468,0.0690629,90394.0,90393.0,0.05823]
[1765217182672,0.058,90388.0,90387.0,0.07544]
[1765217182865,0.09481827,90388.0,90387.0,0.05823]
[1765217183571,0.058,90379.0,90378.0,0.000166]
[1765217183874,0.08375467,90379.0,90378.0,0.000166]
[1765217185068,0.08475467,90379.0,90378.0,0.000166]
[1765217185274,0.08475467,90379.0,90378.0,0.0112308]